[Event "Titled Tuesday Blitz August 15 Early 2023"]
[White "Berezin, Viktor"]
[Black "Gatterer, Florian"]
[WhiteFideId "14107872"]
[BlackFideId "811688"]
[WhiteElo "2501"]
[BlackElo "2336"]
[Result "1-0"]
[Round "4"]
[TimeControl "180+1"]
[Date "2023.08.15"]
[WhiteClock "0:00:54"]
[BlackClock "0:00:07"]
[Board "156"]

1. g3 {[%clk 0:02:53]}  d5 {[%clk 0:02:59]} 2. Bg2 {[%clk 0:02:53]}  g6 {[%clk 0:02:59]} 3. d3 {[%clk 0:02:54]}  Bg7 {[%clk 0:02:55]} 4. Nf3 {[%clk 0:02:54]}  Nf6 {[%clk 0:02:54]} 5. O-O {[%clk 0:02:53]}  O-O {[%clk 0:02:55]} 6. Nbd2 {[%clk 0:02:53]}  c5 {[%clk 0:02:55]} 7. e4 {[%clk 0:02:51]}  Nc6 {[%clk 0:02:54]} 8. Re1 {[%clk 0:02:46]}  e5 {[%clk 0:02:54]} 9. c3 {[%clk 0:02:40]}  d4 {[%clk 0:02:51]} 10. Nc4 {[%clk 0:02:34]}  Qc7 {[%clk 0:02:44]} 11. cxd4 {[%clk 0:02:29]}  cxd4 {[%clk 0:02:43]} 12. Bd2 {[%clk 0:02:26]}  b5 {[%clk 0:02:39]} 13. Na3 {[%clk 0:02:24]}  a6 {[%clk 0:02:39]} 14. Rc1 {[%clk 0:02:22]}  Bb7 {[%clk 0:02:18]} 15. h4 {[%clk 0:02:00]}  h6 {[%clk 0:01:59]} 16. Rc2 {[%clk 0:01:51]}  Qd6 {[%clk 0:01:44]} 17. Qc1 {[%clk 0:01:43]}  Kh7 {[%clk 0:01:20]} 18. Bh3 {[%clk 0:01:42]}  Nd7 {[%clk 0:01:12]} 19. h5 {[%clk 0:01:27]}  Rad8 {[%clk 0:01:06]} 20. hxg6+ {[%clk 0:01:23]}  fxg6 {[%clk 0:01:06]} 21. Nh4 {[%clk 0:01:23]}  Qf6 {[%clk 0:00:53]} 22. Rf1 {[%clk 0:01:16]}  Qe7 {[%clk 0:00:48]} 23. Ng2 {[%clk 0:01:10]}  Nf6 {[%clk 0:00:44]} 24. Rxc6 {[%clk 0:01:05]}  Bxc6 {[%clk 0:00:37]} 25. Qxc6 {[%clk 0:01:06]}  Rd6 {[%clk 0:00:36]} 26. Qc5 {[%clk 0:01:02]}  Nd7 {[%clk 0:00:35]} 27. Qa7 {[%clk 0:00:55]}  Re8 {[%clk 0:00:07]} 28. Bb4 {[%clk 0:00:54]} 1-0


[Site "https://www.chess.com"]

[Event "Titled Tuesday Blitz August 15 Early 2023"]
[White "Reprintsev, Alexander"]
[Black "Lopez Gracia, Fernando"]
[WhiteFideId "14100541"]
[BlackFideId "2207184"]
[WhiteElo "2499"]
[BlackElo "2334"]
[Result "0-1"]
[Round "4"]
[TimeControl "180+1"]
[Date "2023.08.15"]
[WhiteClock "0:00:19"]
[BlackClock "0:00:58"]
[Board "158"]

1. e4 {[%clk 0:02:53]}  c5 {[%clk 0:02:58]} 2. b3 {[%clk 0:02:52]}  e6 {[%clk 0:02:51]} 3. Bb2 {[%clk 0:02:47]}  d5 {[%clk 0:02:52]} 4. Bb5+ {[%clk 0:02:46]}  Bd7 {[%clk 0:02:52]} 5. Bxd7+ {[%clk 0:02:43]}  Qxd7 {[%clk 0:02:52]} 6. Nf3 {[%clk 0:02:34]}  dxe4 {[%clk 0:02:45]} 7. Ne5 {[%clk 0:02:33]}  Qc7 {[%clk 0:02:45]} 8. Qe2 {[%clk 0:02:33]}  Nf6 {[%clk 0:02:44]} 9. a4 {[%clk 0:02:24]}  Nc6 {[%clk 0:02:42]} 10. Nxc6 {[%clk 0:02:21]}  Qxc6 {[%clk 0:02:43]} 11. Na3 {[%clk 0:02:20]}  Be7 {[%clk 0:02:40]} 12. Nc4 {[%clk 0:02:19]}  O-O {[%clk 0:02:39]} 13. g4 {[%clk 0:02:12]}  Rfd8 {[%clk 0:02:27]} 14. g5 {[%clk 0:02:08]}  Nd5 {[%clk 0:02:25]} 15. Qxe4 {[%clk 0:01:59]}  Nb4 {[%clk 0:02:15]} 16. Qxc6 {[%clk 0:01:57]}  bxc6 {[%clk 0:02:14]} 17. O-O-O {[%clk 0:01:52]}  Bxg5 {[%clk 0:02:06]} 18. Rhg1 {[%clk 0:01:50]}  Bh6 {[%clk 0:02:06]} 19. Rxg7+ {[%clk 0:01:43]}  Bxg7 {[%clk 0:02:04]} 20. Rg1 {[%clk 0:01:44]}  Rd4 {[%clk 0:01:49]} 21. Rg5 {[%clk 0:01:21]}  f6 {[%clk 0:01:36]} 22. Rxc5 {[%clk 0:01:17]}  Rd5 {[%clk 0:01:36]} 23. d4 {[%clk 0:01:02]}  Rxc5 {[%clk 0:01:32]} 24. dxc5 {[%clk 0:01:02]}  f5 {[%clk 0:01:31]} 25. c3 {[%clk 0:00:58]}  Nd5 {[%clk 0:01:27]} 26. Kc2 {[%clk 0:00:55]}  Rf8 {[%clk 0:01:17]} 27. Na5 {[%clk 0:00:54]}  Rc8 {[%clk 0:01:13]} 28. b4 {[%clk 0:00:53]}  a6 {[%clk 0:01:09]} 29. Nc4 {[%clk 0:00:51]}  e5 {[%clk 0:01:08]} 30. Nd6 {[%clk 0:00:47]}  Rf8 {[%clk 0:01:04]} 31. Kb3 {[%clk 0:00:47]}  e4 {[%clk 0:01:02]} 32. Nc4 {[%clk 0:00:25]}  f4 {[%clk 0:01:00]} 33. Na5 {[%clk 0:00:24]}  e3 {[%clk 0:00:59]} 34. fxe3 {[%clk 0:00:24]}  fxe3 {[%clk 0:01:00]} 35. Bc1 {[%clk 0:00:23]}  e2 {[%clk 0:00:59]} 36. Bd2 {[%clk 0:00:19]}  Bxc3 {[%clk 0:00:58]} 0-1


[Site "https://www.chess.com"]

[Event "Titled Tuesday Blitz August 15 Early 2023"]
[White "Davidson, Kevin"]
[Black "LeoLV10"]
[WhiteFideId "2056810"]
[WhiteElo "2328"]
[BlackElo "2495"]
[Result "1-0"]
[Round "4"]
[TimeControl "180+1"]
[Date "2023.08.15"]
[WhiteClock "0:01:43"]
[BlackClock "0:00:19"]
[Board "160"]

1. e4 {[%clk 0:03:00]}  c5 {[%clk 0:03:00]} 2. Nf3 {[%clk 0:03:00]}  e6 {[%clk 0:02:59]} 3. d4 {[%clk 0:02:51]}  cxd4 {[%clk 0:03:00]} 4. Nxd4 {[%clk 0:02:45]}  a6 {[%clk 0:03:01]} 5. Nc3 {[%clk 0:02:44]}  b5 {[%clk 0:02:55]} 6. Bd3 {[%clk 0:02:32]}  Bb7 {[%clk 0:02:55]} 7. O-O {[%clk 0:02:32]}  Qc7 {[%clk 0:02:55]} 8. Re1 {[%clk 0:02:29]}  d6 {[%clk 0:02:54]} 9. a4 {[%clk 0:02:24]}  b4 {[%clk 0:02:54]} 10. Nd5 {[%clk 0:02:24]}  exd5 {[%clk 0:02:49]} 11. exd5+ {[%clk 0:02:25]}  Be7 {[%clk 0:02:49]} 12. Nf5 {[%clk 0:02:10]}  Kf8 {[%clk 0:02:45]} 13. Qg4 {[%clk 0:01:58]}  Bf6 {[%clk 0:02:39]} 14. Bf4 {[%clk 0:01:57]}  h5 {[%clk 0:00:18]} 15. Bxd6+ {[%clk 0:01:43]}  Qxd6 {[%clk 0:00:18]} 16. Nxd6 {[%clk 0:01:43]}  hxg4 {[%clk 0:00:19]} 17. Re8# {[%clk 0:01:43]} 1-0


[Site "https://www.chess.com"]

[Event "Titled Tuesday Blitz August 15 Early 2023"]
[White "Baches Garcia, Guillermo"]
[Black "Jahnz, Fabian"]
[WhiteFideId "2209764"]
[BlackFideId "4653300"]
[WhiteElo "2494"]
[BlackElo "2327"]
[Result "1-0"]
[Round "4"]
[TimeControl "180+1"]
[Date "2023.08.15"]
[WhiteClock "0:00:15"]
[BlackClock "0:00:16"]
[Board "162"]

1. e4 {[%clk 0:03:00]}  c6 {[%clk 0:03:00]} 2. d4 {[%clk 0:03:00]}  d5 {[%clk 0:03:01]} 3. e5 {[%clk 0:03:01]}  Bf5 {[%clk 0:03:01]} 4. h4 {[%clk 0:03:00]}  Qc7 {[%clk 0:03:01]} 5. Be3 {[%clk 0:02:58]}  h6 {[%clk 0:02:59]} 6. Bd3 {[%clk 0:02:50]}  Bxd3 {[%clk 0:02:59]} 7. Qxd3 {[%clk 0:02:50]}  e6 {[%clk 0:02:59]} 8. c4 {[%clk 0:02:42]}  Bb4+ {[%clk 0:02:57]} 9. Nc3 {[%clk 0:02:40]}  Ne7 {[%clk 0:02:56]} 10. c5 {[%clk 0:02:38]}  Nd7 {[%clk 0:02:55]} 11. a3 {[%clk 0:02:35]}  Bxc3+ {[%clk 0:02:55]} 12. Qxc3 {[%clk 0:02:35]}  Nf5 {[%clk 0:02:54]} 13. Bd2 {[%clk 0:02:28]}  O-O {[%clk 0:02:47]} 14. g4 {[%clk 0:02:19]}  Ne7 {[%clk 0:02:47]} 15. Ne2 {[%clk 0:02:14]}  f6 {[%clk 0:02:47]} 16. f4 {[%clk 0:02:10]}  fxe5 {[%clk 0:02:47]} 17. dxe5 {[%clk 0:02:07]}  b6 {[%clk 0:02:46]} 18. b4 {[%clk 0:01:52]}  bxc5 {[%clk 0:02:31]} 19. bxc5 {[%clk 0:01:51]}  Rab8 {[%clk 0:02:31]} 20. Nd4 {[%clk 0:01:46]}  Qb7 {[%clk 0:02:06]} 21. Nxe6 {[%clk 0:01:40]}  Rfe8 {[%clk 0:02:01]} 22. Nd4 {[%clk 0:01:27]}  Ng6 {[%clk 0:01:56]} 23. h5 {[%clk 0:01:20]}  Ngf8 {[%clk 0:01:53]} 24. O-O {[%clk 0:01:17]}  Ne6 {[%clk 0:01:52]} 25. Nxe6 {[%clk 0:01:08]}  Rxe6 {[%clk 0:01:53]} 26. Rae1 {[%clk 0:01:03]}  Qb2 {[%clk 0:01:48]} 27. Rb1 {[%clk 0:00:42]}  Qxb1 {[%clk 0:01:41]} 28. Rxb1 {[%clk 0:00:43]}  Rxb1+ {[%clk 0:01:41]} 29. Kg2 {[%clk 0:00:42]}  Rb5 {[%clk 0:01:37]} 30. Be3 {[%clk 0:00:40]}  Re8 {[%clk 0:01:19]} 31. Bd4 {[%clk 0:00:39]}  Nf8 {[%clk 0:01:03]} 32. f5 {[%clk 0:00:35]}  Nh7 {[%clk 0:00:54]} 33. e6 {[%clk 0:00:30]}  Re7 {[%clk 0:00:53]} 34. Qg3 {[%clk 0:00:18]}  Rbb7 {[%clk 0:00:39]} 35. Qd6 {[%clk 0:00:18]}  Rbc7 {[%clk 0:00:32]} 36. Be5 {[%clk 0:00:17]}  Ng5 {[%clk 0:00:20]} 37. Qd8+ {[%clk 0:00:15]}  Kh7 {[%clk 0:00:16]} 38. Bxc7 {[%clk 0:00:15]} 1-0


[Site "https://www.chess.com"]

[Event "Titled Tuesday Blitz August 15 Early 2023"]
[White "Efremov, Vladislav"]
[Black "Shubenkova, Veronika"]
[WhiteFideId "44159935"]
[BlackFideId "44124040"]
[WhiteElo "2317"]
[BlackElo "2492"]
[Result "1-0"]
[Round "4"]
[TimeControl "180+1"]
[Date "2023.08.15"]
[WhiteClock "0:00:06"]
[BlackClock "0:00:00"]
[Board "163"]

1. e4 {[%clk 0:03:00]}  e6 {[%clk 0:02:59]} 2. d4 {[%clk 0:03:00]}  d5 {[%clk 0:02:59]} 3. Nd2 {[%clk 0:03:00]}  Nf6 {[%clk 0:02:59]} 4. exd5 {[%clk 0:02:58]}  exd5 {[%clk 0:02:59]} 5. Ngf3 {[%clk 0:02:58]}  Bd6 {[%clk 0:02:59]} 6. Bd3 {[%clk 0:02:58]}  O-O {[%clk 0:02:59]} 7. O-O {[%clk 0:02:59]}  Bg4 {[%clk 0:02:59]} 8. h3 {[%clk 0:02:59]}  Bh5 {[%clk 0:02:58]} 9. c3 {[%clk 0:02:59]}  Nbd7 {[%clk 0:02:58]} 10. Qc2 {[%clk 0:02:59]}  Bg6 {[%clk 0:02:57]} 11. Bxg6 {[%clk 0:02:59]}  hxg6 {[%clk 0:02:57]} 12. Nb3 {[%clk 0:03:00]}  c6 {[%clk 0:02:56]} 13. Be3 {[%clk 0:02:54]}  Ne4 {[%clk 0:02:51]} 14. Rfe1 {[%clk 0:02:51]}  f5 {[%clk 0:02:51]} 15. c4 {[%clk 0:02:39]}  g5 {[%clk 0:02:45]} 16. Ne5 {[%clk 0:02:08]}  Nxe5 {[%clk 0:02:33]} 17. dxe5 {[%clk 0:02:07]}  Bxe5 {[%clk 0:02:33]} 18. cxd5 {[%clk 0:01:59]}  cxd5 {[%clk 0:02:33]} 19. f3 {[%clk 0:01:55]}  Nd6 {[%clk 0:02:08]} 20. Bxg5 {[%clk 0:01:44]}  Qxg5 {[%clk 0:02:05]} 21. Rxe5 {[%clk 0:01:44]}  Nc4 {[%clk 0:02:02]} 22. Re2 {[%clk 0:01:29]}  Rae8 {[%clk 0:01:52]} 23. Rae1 {[%clk 0:01:30]}  Ne3 {[%clk 0:01:48]} 24. Qd2 {[%clk 0:01:26]}  f4 {[%clk 0:01:47]} 25. Nd4 {[%clk 0:01:18]}  Rf6 {[%clk 0:01:43]} 26. Nc2 {[%clk 0:01:10]}  Rfe6 {[%clk 0:01:42]} 27. Nxe3 {[%clk 0:01:05]}  fxe3 {[%clk 0:01:39]} 28. Qd4 {[%clk 0:01:02]}  Rg6 {[%clk 0:01:12]} 29. Rd1 {[%clk 0:01:00]}  Re5 {[%clk 0:00:35]} 30. f4 {[%clk 0:01:00]}  Qh5 {[%clk 0:00:31]} 31. Qxe5 {[%clk 0:00:47]}  Qxe2 {[%clk 0:00:31]} 32. Qxd5+ {[%clk 0:00:47]}  Kh7 {[%clk 0:00:31]} 33. Rf1 {[%clk 0:00:37]}  Qxb2 {[%clk 0:00:24]} 34. Qh5+ {[%clk 0:00:36]}  Rh6 {[%clk 0:00:22]} 35. Qf5+ {[%clk 0:00:37]}  Kg8 {[%clk 0:00:09]} 36. Qc8+ {[%clk 0:00:36]}  Kf7 {[%clk 0:00:05]} 37. Qd7+ {[%clk 0:00:36]}  Kg8 {[%clk 0:00:05]} 38. Qe8+ {[%clk 0:00:35]}  Kh7 {[%clk 0:00:05]} 39. Qe4+ {[%clk 0:00:36]}  Rg6 {[%clk 0:00:05]} 40. f5 {[%clk 0:00:31]}  Rf6 {[%clk 0:00:04]} 41. Qxe3 {[%clk 0:00:28]}  Qxa2 {[%clk 0:00:04]} 42. g4 {[%clk 0:00:23]}  Qd5 {[%clk 0:00:03]} 43. Qg5 {[%clk 0:00:18]}  Qd4+ {[%clk 0:00:01]} 44. Kg2 {[%clk 0:00:18]}  Rh6 {[%clk 0:00:02]} 45. Rf3 {[%clk 0:00:16]}  Qd5 {[%clk 0:00:02]} 46. Qe3 {[%clk 0:00:13]}  Qc6 {[%clk 0:00:02]} 47. g5 {[%clk 0:00:13]}  Rh5 {[%clk 0:00:02]} 48. Kg3 {[%clk 0:00:11]}  Qd6+ {[%clk 0:00:02]} 49. Kg2 {[%clk 0:00:09]}  Rh4 {[%clk 0:00:02]} 50. g6+ {[%clk 0:00:10]}  Kg8 {[%clk 0:00:01]} 51. Qe8+ {[%clk 0:00:10]}  Qf8 {[%clk 0:00:02]} 52. Qe6+ {[%clk 0:00:10]}  Kh8 {[%clk 0:00:02]} 53. f6 {[%clk 0:00:10]}  Rh6 {[%clk 0:00:03]} 54. fxg7+ {[%clk 0:00:10]}  Qxg7 {[%clk 0:00:04]} 55. Qe8+ {[%clk 0:00:10]}  Qg8 {[%clk 0:00:05]} 56. Rf8 {[%clk 0:00:11]}  Rxg6+ {[%clk 0:00:06]} 57. Kf2 {[%clk 0:00:09]}  Rg2+ {[%clk 0:00:06]} 58. Ke3 {[%clk 0:00:09]}  Rg3+ {[%clk 0:00:06]} 59. Ke4 {[%clk 0:00:08]}  Rg7 {[%clk 0:00:04]} 60. Rxg8+ {[%clk 0:00:08]}  Rxg8 {[%clk 0:00:04]} 61. Qh5+ {[%clk 0:00:09]}  Kg7 {[%clk 0:00:04]} 62. Qe5+ {[%clk 0:00:09]}  Kh7 {[%clk 0:00:04]} 63. Qf5+ {[%clk 0:00:07]}  Kh6 {[%clk 0:00:03]} 64. h4 {[%clk 0:00:07]}  Rg7 {[%clk 0:00:02]} 65. Qf4+ {[%clk 0:00:06]}  Kh5 {[%clk 0:00:01]} 66. Kd5 {[%clk 0:00:05]}  Rg4 {[%clk 0:00:01]} 67. Qf7+ {[%clk 0:00:04]}  Kxh4 {[%clk 0:00:02]} 68. Qxb7 {[%clk 0:00:05]}  Kg3 {[%clk 0:00:03]} 69. Qxa7 {[%clk 0:00:04]}  Rg5+ {[%clk 0:00:04]} 70. Ke6 {[%clk 0:00:04]}  Rg4 {[%clk 0:00:04]} 71. Kf5 {[%clk 0:00:04]}  Rf4+ {[%clk 0:00:04]} 72. Ke5 {[%clk 0:00:04]}  Rg4 {[%clk 0:00:04]} 73. Qe3+ {[%clk 0:00:05]}  Kh4 {[%clk 0:00:04]} 74. Kf5 {[%clk 0:00:04]}  Ra4 {[%clk 0:00:03]} 75. Qh6+ {[%clk 0:00:04]}  Kg3 {[%clk 0:00:03]} 76. Qd2 {[%clk 0:00:05]}  Rg4 {[%clk 0:00:01]} 77. Qe1+ {[%clk 0:00:04]}  Kh3 {[%clk 0:00:02]} 78. Qh1+ {[%clk 0:00:04]}  Kg3 {[%clk 0:00:01]} 79. Qg1+ {[%clk 0:00:05]}  Kf3 {[%clk 0:00:00]} 80. Qxg4+ {[%clk 0:00:06]} 1-0


[Site "https://www.chess.com"]

[Event "Titled Tuesday Blitz August 15 Early 2023"]
[White "djathtaspogradec"]
[Black "Kiselev, Pavel"]
[BlackFideId "4191102"]
[WhiteElo "2492"]
[BlackElo "2311"]
[Result "0-1"]
[Round "4"]
[TimeControl "180+1"]
[Date "2023.08.15"]
[WhiteClock "0:02:28"]
[BlackClock "0:02:08"]
[Board "164"]

1. Nf3 {[%clk 0:03:00]}  f5 {[%clk 0:02:59]} 2. g3 {[%clk 0:03:01]}  Nf6 {[%clk 0:02:59]} 3. Bg2 {[%clk 0:03:02]}  g6 {[%clk 0:02:59]} 4. O-O {[%clk 0:03:02]}  Bg7 {[%clk 0:03:00]} 5. b3 {[%clk 0:03:03]}  d6 {[%clk 0:03:00]} 6. Bb2 {[%clk 0:03:04]}  e5 {[%clk 0:03:01]} 7. d4 {[%clk 0:03:04]}  e4 {[%clk 0:03:01]} 8. Ne1 {[%clk 0:03:05]}  d5 {[%clk 0:02:59]} 9. c4 {[%clk 0:03:06]}  c6 {[%clk 0:03:00]} 10. Nc3 {[%clk 0:03:07]}  O-O {[%clk 0:02:59]} 11. Rc1 {[%clk 0:03:06]}  Be6 {[%clk 0:02:59]} 12. cxd5 {[%clk 0:03:05]}  Nxd5 {[%clk 0:02:59]} 13. e3 {[%clk 0:03:05]}  Nd7 {[%clk 0:02:57]} 14. Nc2 {[%clk 0:03:05]}  N7b6 {[%clk 0:02:57]} 15. a4 {[%clk 0:03:05]}  Nxc3 {[%clk 0:02:56]} 16. Bxc3 {[%clk 0:03:05]}  Nd5 {[%clk 0:02:57]} 17. Bb2 {[%clk 0:03:05]}  Qb6 {[%clk 0:02:57]} 18. Na3 {[%clk 0:03:05]}  Nb4 {[%clk 0:02:55]} 19. Nc4 {[%clk 0:03:05]}  Bxc4 {[%clk 0:02:55]} 20. Rxc4 {[%clk 0:03:02]}  Nd3 {[%clk 0:02:55]} 21. Ba3 {[%clk 0:03:01]}  Rfd8 {[%clk 0:02:48]} 22. Qc2 {[%clk 0:03:01]}  Rac8 {[%clk 0:02:30]} 23. Rd1 {[%clk 0:03:00]}  Qa6 {[%clk 0:02:22]} 24. Bf1 {[%clk 0:02:58]}  b5 {[%clk 0:02:23]} 25. axb5 {[%clk 0:02:40]}  cxb5 {[%clk 0:02:24]} 26. Rxc8 {[%clk 0:02:39]}  Rxc8 {[%clk 0:02:25]} 27. Qa2 {[%clk 0:02:33]}  b4 {[%clk 0:02:22]} 28. Bxd3 {[%clk 0:02:33]}  exd3 {[%clk 0:02:23]} 29. d5 {[%clk 0:02:32]}  Qxa3 {[%clk 0:02:22]} 30. Qb1 {[%clk 0:02:30]}  d2 {[%clk 0:02:10]} 31. Kg2 {[%clk 0:02:28]}  Rc1 {[%clk 0:02:08]} 0-1


[Site "https://www.chess.com"]

[Event "Titled Tuesday Blitz August 15 Early 2023"]
[White "Goncalves, Davi Sulzbacher"]
[Black "Afanasieva, Alexandra"]
[WhiteFideId "2154510"]
[BlackFideId "34126926"]
[WhiteElo "2491"]
[BlackElo "2310"]
[Result "0-1"]
[Round "4"]
[TimeControl "180+1"]
[Date "2023.08.15"]
[WhiteClock "0:00:53"]
[BlackClock "0:00:05"]
[Board "165"]

1. e4 {[%clk 0:03:00]}  c5 {[%clk 0:02:59]} 2. Nf3 {[%clk 0:03:00]}  Nc6 {[%clk 0:02:59]} 3. d4 {[%clk 0:03:00]}  cxd4 {[%clk 0:03:00]} 4. Nxd4 {[%clk 0:03:01]}  e5 {[%clk 0:03:01]} 5. Nb5 {[%clk 0:03:00]}  d6 {[%clk 0:03:01]} 6. c4 {[%clk 0:03:00]}  Be6 {[%clk 0:03:02]} 7. Be2 {[%clk 0:02:59]}  Rc8 {[%clk 0:03:01]} 8. O-O {[%clk 0:02:58]}  Be7 {[%clk 0:03:02]} 9. Be3 {[%clk 0:02:56]}  a6 {[%clk 0:02:53]} 10. N5c3 {[%clk 0:02:53]}  Bg5 {[%clk 0:02:54]} 11. Nd5 {[%clk 0:02:48]}  Bxe3 {[%clk 0:02:41]} 12. fxe3 {[%clk 0:02:49]}  Bxd5 {[%clk 0:02:39]} 13. exd5 {[%clk 0:02:47]}  Nce7 {[%clk 0:02:38]} 14. Nc3 {[%clk 0:02:42]}  f5 {[%clk 0:02:30]} 15. g4 {[%clk 0:02:18]}  Qb6 {[%clk 0:02:21]} 16. Qd2 {[%clk 0:02:12]}  f4 {[%clk 0:02:19]} 17. Kh1 {[%clk 0:02:02]}  fxe3 {[%clk 0:01:25]} 18. Qc2 {[%clk 0:02:02]}  Nf6 {[%clk 0:00:10]} 19. g5 {[%clk 0:02:01]}  Nd7 {[%clk 0:00:09]} 20. Ne4 {[%clk 0:01:59]}  Nxd5 {[%clk 0:00:06]} 21. Qd1 {[%clk 0:01:58]}  Nf4 {[%clk 0:00:05]} 22. Nxd6+ {[%clk 0:01:57]}  Ke7 {[%clk 0:00:05]} 23. Nf5+ {[%clk 0:01:51]}  Kd8 {[%clk 0:00:02]} 24. Rxf4 {[%clk 0:01:27]}  exf4 {[%clk 0:00:02]} 25. Bf3 {[%clk 0:01:20]}  Kc7 {[%clk 0:00:02]} 26. Qd5 {[%clk 0:01:19]}  Kb8 {[%clk 0:00:02]} 27. Rd1 {[%clk 0:01:20]}  Rhd8 {[%clk 0:00:02]} 28. Nd6 {[%clk 0:01:19]}  Rc6 {[%clk 0:00:02]} 29. Nf7 {[%clk 0:01:18]}  Nf6 {[%clk 0:00:02]} 30. Qxd8+ {[%clk 0:01:18]}  Qxd8 {[%clk 0:00:03]} 31. Rxd8+ {[%clk 0:01:18]}  Ka7 {[%clk 0:00:03]} 32. Bxc6 {[%clk 0:01:16]}  e2 {[%clk 0:00:03]} 33. gxf6 {[%clk 0:01:13]}  e1=Q+ {[%clk 0:00:03]} 34. Kg2 {[%clk 0:01:13]}  Qe2+ {[%clk 0:00:04]} 35. Kh3 {[%clk 0:01:13]}  f3 {[%clk 0:00:04]} 36. Rd7 {[%clk 0:01:12]}  Kb6 {[%clk 0:00:04]} 37. Bd5 {[%clk 0:01:11]}  f2 {[%clk 0:00:05]} 38. Rxb7+ {[%clk 0:01:07]}  Kc5 {[%clk 0:00:05]} 39. fxg7 {[%clk 0:00:54]}  f1=Q+ {[%clk 0:00:05]} 40. Kh4 {[%clk 0:00:53]}  Qf4+ {[%clk 0:00:05]} 41. Kh3 {[%clk 0:00:53]}  Qeg4# {[%clk 0:00:05]} 0-1


[Site "https://www.chess.com"]

[Event "Titled Tuesday Blitz August 15 Early 2023"]
[White "Iljin, Timofey"]
[Black "Preobrazhenska_D2011"]
[WhiteFideId "14110180"]
[WhiteElo "2489"]
[BlackElo "2302"]
[Result "1-0"]
[Round "4"]
[TimeControl "180+1"]
[Date "2023.08.15"]
[WhiteClock "0:00:34"]
[BlackClock "0:00:00"]
[Board "167"]

1. e4 {[%clk 0:03:00]}  c5 {[%clk 0:03:00]} 2. c3 {[%clk 0:03:00]}  d5 {[%clk 0:02:54]} 3. exd5 {[%clk 0:03:00]}  Nf6 {[%clk 0:02:54]} 4. d4 {[%clk 0:03:01]}  Qxd5 {[%clk 0:02:51]} 5. Nf3 {[%clk 0:03:02]}  Nc6 {[%clk 0:02:48]} 6. Be2 {[%clk 0:02:52]}  Bg4 {[%clk 0:02:38]} 7. O-O {[%clk 0:02:44]}  e6 {[%clk 0:02:37]} 8. Be3 {[%clk 0:02:41]}  O-O-O {[%clk 0:02:24]} 9. h3 {[%clk 0:02:37]}  Bh5 {[%clk 0:02:23]} 10. Na3 {[%clk 0:02:22]}  h6 {[%clk 0:02:04]} 11. Qa4 {[%clk 0:02:16]}  g5 {[%clk 0:01:51]} 12. Rfd1 {[%clk 0:02:08]}  Qd7 {[%clk 0:01:14]} 13. dxc5 {[%clk 0:02:05]}  Qe8 {[%clk 0:01:01]} 14. Nb5 {[%clk 0:01:37]}  Kb8 {[%clk 0:00:35]} 15. Ne5 {[%clk 0:01:06]}  Rxd1+ {[%clk 0:00:17]} 16. Rxd1 {[%clk 0:01:05]}  Nd5 {[%clk 0:00:04]} 17. Nxc6+ {[%clk 0:01:03]}  Qxc6 {[%clk 0:00:05]} 18. Qxa7+ {[%clk 0:01:02]}  Kc8 {[%clk 0:00:06]} 19. Qa8+ {[%clk 0:00:48]}  Kd7 {[%clk 0:00:07]} 20. Na7 {[%clk 0:00:48]}  Qc7 {[%clk 0:00:04]} 21. Nb5 {[%clk 0:00:38]}  Qc6 {[%clk 0:00:05]} 22. Nd4 {[%clk 0:00:37]}  Qc7 {[%clk 0:00:03]} 23. Qa4+ {[%clk 0:00:36]}  Kc8 {[%clk 0:00:02]} 24. Qe8+ {[%clk 0:00:35]}  Qd8 {[%clk 0:00:03]} 25. Qxd8+ {[%clk 0:00:34]}  Kxd8 {[%clk 0:00:04]} 26. Bxh5 {[%clk 0:00:34]}  Bxc5 {[%clk 0:00:03]} 27. Nxe6+ {[%clk 0:00:33]}  fxe6 {[%clk 0:00:03]} 28. Bxc5 {[%clk 0:00:34]}  Kc7 {[%clk 0:00:03]} 29. c4 {[%clk 0:00:34]}  Nf6 {[%clk 0:00:02]} 30. Bd6+ {[%clk 0:00:34]}  Kc6 {[%clk 0:00:01]} 31. Be5 {[%clk 0:00:34]}  Rf8 {[%clk 0:00:01]} 32. Bf3+ {[%clk 0:00:34]}  Kb6 {[%clk 0:00:02]} 33. c5+ {[%clk 0:00:34]}  Kxc5 {[%clk 0:00:00]} 34. Bd6+ {[%clk 0:00:34]} 1-0


[Site "https://www.chess.com"]

[Event "Titled Tuesday Blitz August 15 Early 2023"]
[White "Ai, Evan"]
[Black "feuervogel1000000"]
[WhiteFideId "2094770"]
[WhiteElo "2299"]
[BlackElo "2489"]
[Result "0-1"]
[Round "4"]
[TimeControl "180+1"]
[Date "2023.08.15"]
[WhiteClock "0:00:48"]
[BlackClock "0:01:21"]
[Board "168"]

1. d4 {[%clk 0:03:00]}  Nf6 {[%clk 0:02:59]} 2. Nc3 {[%clk 0:03:00]}  d5 {[%clk 0:02:58]} 3. Bf4 {[%clk 0:03:00]}  a6 {[%clk 0:02:57]} 4. e3 {[%clk 0:03:01]}  e6 {[%clk 0:02:53]} 5. Bd3 {[%clk 0:02:58]}  c5 {[%clk 0:02:52]} 6. dxc5 {[%clk 0:02:57]}  Nbd7 {[%clk 0:02:50]} 7. Nf3 {[%clk 0:02:56]}  Nxc5 {[%clk 0:02:48]} 8. Ne5 {[%clk 0:02:54]}  Bd6 {[%clk 0:02:44]} 9. O-O {[%clk 0:02:52]}  h5 {[%clk 0:02:41]} 10. h3 {[%clk 0:02:51]}  Qc7 {[%clk 0:02:32]} 11. Nf3 {[%clk 0:02:33]}  Bxf4 {[%clk 0:02:28]} 12. exf4 {[%clk 0:02:33]}  Qxf4 {[%clk 0:02:28]} 13. Re1 {[%clk 0:02:23]}  g5 {[%clk 0:02:26]} 14. Ne5 {[%clk 0:02:17]}  g4 {[%clk 0:02:25]} 15. g3 {[%clk 0:02:17]}  Qb4 {[%clk 0:02:20]} 16. a3 {[%clk 0:02:04]}  Qxb2 {[%clk 0:02:18]} 17. Qd2 {[%clk 0:02:04]}  d4 {[%clk 0:02:14]} 18. Ne2 {[%clk 0:01:59]}  Nxd3 {[%clk 0:02:07]} 19. Nxd3 {[%clk 0:01:57]}  Qb6 {[%clk 0:02:07]} 20. Qg5 {[%clk 0:01:53]}  Qd8 {[%clk 0:02:02]} 21. Nef4 {[%clk 0:01:50]}  Rg8 {[%clk 0:02:01]} 22. Qh6 {[%clk 0:01:44]}  gxh3 {[%clk 0:01:54]} 23. Nxh5 {[%clk 0:01:42]}  Ng4 {[%clk 0:01:54]} 24. Qh7 {[%clk 0:01:36]}  Qg5 {[%clk 0:01:53]} 25. Re4 {[%clk 0:01:28]}  h2+ {[%clk 0:01:46]} 26. Kg2 {[%clk 0:01:20]}  b6 {[%clk 0:01:44]} 27. Rxg4 {[%clk 0:01:16]}  Bb7+ {[%clk 0:01:34]} 28. f3 {[%clk 0:01:16]}  Bxf3+ {[%clk 0:01:33]} 29. Kxf3 {[%clk 0:01:17]}  Qxg4+ {[%clk 0:01:34]} 30. Kg2 {[%clk 0:01:15]}  O-O-O {[%clk 0:01:27]} 31. Kxh2 {[%clk 0:01:08]}  Rh8 {[%clk 0:01:25]} 32. Nf2 {[%clk 0:00:50]}  Rxh7 {[%clk 0:01:21]} 33. Nxg4 {[%clk 0:00:50]}  Rxh5+ {[%clk 0:01:22]} 34. Kg2 {[%clk 0:00:48]}  Rc5 {[%clk 0:01:21]} 0-1


[Site "https://www.chess.com"]